[Event "Early-Titled-Tuesday-Blitz-June-18-2024"]
[Site "Chess.com"]
[Date "2024.06.18"]
[Round "7"]
[White "ChEsper99"]
[Black "pineapplehhh"]
[Result "0-1"]
[WhiteElo "2248"]
[BlackElo "2111"]
[TimeControl "180+1"]
[EndTime "9:20:22 PDT"]
[Termination "pineapplehhh won by resignation"]

1. e4 {[%clk 0:03:00.9]} 1... e5 {[%clk 0:02:56.5]} 2. Nf3 {[%clk 0:03:00]} 2...
Nc6 {[%clk 0:02:54.5]} 3. Bb5 {[%clk 0:02:59.8]} 3... a6 {[%clk 0:02:53.6]} 4.
Ba4 {[%clk 0:02:59.7]} 4... Nf6 {[%clk 0:02:52.9]} 5. O-O {[%clk 0:03:00.3]}
5... Be7 {[%clk 0:02:53.1]} 6. Re1 {[%clk 0:02:57.9]} 6... b5 {[%clk 0:02:53.5]}
7. Bb3 {[%clk 0:02:57.9]} 7... d6 {[%clk 0:02:54.2]} 8. c3 {[%clk 0:02:54.1]}
8... O-O {[%clk 0:02:53.2]} 9. h3 {[%clk 0:02:54.3]} 9... Nb8 {[%clk 0:02:52.5]}
10. d4 {[%clk 0:02:54.4]} 10... Nbd7 {[%clk 0:02:51.7]} 11. a4 {[%clk
0:02:54.3]} 11... Bb7 {[%clk 0:02:49.7]} 12. Nbd2 {[%clk 0:02:49.3]} 12... c5
{[%clk 0:02:47]} 13. Bc2 {[%clk 0:02:43.1]} 13... Re8 {[%clk 0:02:41.7]} 14. Nf1
{[%clk 0:02:43]} 14... Bf8 {[%clk 0:02:40.4]} 15. Ng3 {[%clk 0:02:43.6]} 15...
g6 {[%clk 0:02:37.7]} 16. Bg5 {[%clk 0:02:22.6]} 16... h6 {[%clk 0:02:31.7]} 17.
Bc1 {[%clk 0:02:20.3]} 17... exd4 {[%clk 0:02:28]} 18. cxd4 {[%clk 0:02:18.1]}
18... Bg7 {[%clk 0:02:24.2]} 19. Bf4 {[%clk 0:02:10.7]} 19... Qb6 {[%clk
0:01:59.5]} 20. a5 {[%clk 0:02:02.6]} 20... Qc6 {[%clk 0:01:58.6]} 21. Rc1
{[%clk 0:01:30.8]} 21... c4 {[%clk 0:01:33.6]} 22. b3 {[%clk 0:01:18]} 22... Qc7
{[%clk 0:01:23.2]} 23. bxc4 {[%clk 0:01:11.6]} 23... bxc4 {[%clk 0:01:23.1]} 24.
Bd3 {[%clk 0:00:57.3]} 24... Qxa5 {[%clk 0:01:20]} 25. Bxc4 {[%clk 0:00:42.4]}
25... Nxe4 {[%clk 0:01:13.8]} 26. Nxe4 {[%clk 0:00:42.6]} 26... Bxe4 {[%clk
0:01:12.1]} 27. Bxd6 {[%clk 0:00:31.5]} 27... Qb6 {[%clk 0:01:03.4]} 28. Qb3
{[%clk 0:00:17.1]} 28... Qxd6 {[%clk 0:00:46.2]} 29. Bxf7+ {[%clk 0:00:17.1]}
29... Kh7 {[%clk 0:00:46.6]} 30. Bxe8 {[%clk 0:00:15.4]} 30... Rxe8 {[%clk
0:00:47.2]} 31. Ne5 {[%clk 0:00:04.5]} 31... Bd5 {[%clk 0:00:42.4]} 32. Qc2
{[%clk 0:00:02.8]} 32... Nxe5 {[%clk 0:00:42.3]} 33. dxe5 {[%clk 0:00:03.2]}
33... Rxe5 {[%clk 0:00:41.9]} 34. Rcd1 {[%clk 0:00:02.4]} 34... Rxe1+ {[%clk
0:00:39.8]} 35. Rxe1 {[%clk 0:00:02.7]} 35... Qc6 {[%clk 0:00:38.8]} 36. Qd2
{[%clk 0:00:01.9]} 36... Bxg2 {[%clk 0:00:36.9]} 37. Re7 {[%clk 0:00:01.4]}
37... Bh1 {[%clk 0:00:34.6]} 38. f3 {[%clk 0:00:01]} 38... Qxf3 {[%clk
0:00:32.8]} 39. Qb2 {[%clk 0:00:01.2]} 39... Qd1+ {[%clk 0:00:16.7]} 40. Kh2
{[%clk 0:00:01.6]} 40... Qd6+ {[%clk 0:00:15.9]} 41. Kxh1 {[%clk 0:00:01.6]}
41... Qxe7 {[%clk 0:00:16.5]} 0-1

[Event "Early-Titled-Tuesday-Blitz-June-18-2024"]
[Site "Chess.com"]
[Date "2024.06.18"]
[Round "7"]
[White "Orest_Vovk"]
[Black "EvgenyBurmakin"]
[Result "0-1"]
[WhiteElo "2550"]
[BlackElo "2412"]
[TimeControl "180+1"]
[EndTime "9:20:24 PDT"]
[Termination "EvgenyBurmakin won by resignation"]

1. h4 {[%clk 0:02:56.3]} 1... h5 {[%clk 0:02:58.7]} 2. Nf3 {[%clk 0:02:55.8]}
2... c5 {[%clk 0:02:56.7]} 3. Ng5 {[%clk 0:02:55.5]} 3... Nf6 {[%clk 0:02:49.7]}
4. Nc3 {[%clk 0:02:55]} 4... Nc6 {[%clk 0:02:48.6]} 5. e4 {[%clk 0:02:55.5]}
5... e6 {[%clk 0:02:40.2]} 6. Bb5 {[%clk 0:02:52]} 6... Qc7 {[%clk 0:02:34.1]}
7. d3 {[%clk 0:02:50.8]} 7... a6 {[%clk 0:02:34.1]} 8. Bxc6 {[%clk 0:02:50.6]}
8... Qxc6 {[%clk 0:02:35]} 9. Be3 {[%clk 0:02:49.6]} 9... b5 {[%clk 0:02:33.2]}
10. d4 {[%clk 0:02:46.5]} 10... cxd4 {[%clk 0:02:25.6]} 11. Qxd4 {[%clk
0:02:46.1]} 11... Bb7 {[%clk 0:02:19.3]} 12. O-O-O {[%clk 0:02:43.4]} 12... b4
{[%clk 0:02:16.8]} 13. Nd5 {[%clk 0:02:40.8]} 13... exd5 {[%clk 0:02:06.2]} 14.
exd5 {[%clk 0:02:31.9]} 14... Qxd5 {[%clk 0:01:54.2]} 15. Qb6 {[%clk 0:02:18.5]}
15... Qc6 {[%clk 0:01:49.4]} 16. Rhe1 {[%clk 0:02:17]} 16... Qxb6 {[%clk
0:01:03.2]} 17. Bxb6+ {[%clk 0:02:16.2]} 17... Be7 {[%clk 0:01:01.7]} 18. Bc5
{[%clk 0:02:16.3]} 18... Ng8 {[%clk 0:01:00.3]} 19. Rxe7+ {[%clk 0:02:03.9]}
19... Nxe7 {[%clk 0:01:00.3]} 20. Re1 {[%clk 0:02:04]} 20... d6 {[%clk
0:00:46.8]} 21. Bxd6 {[%clk 0:02:02.8]} 21... O-O {[%clk 0:00:36.9]} 22. Rxe7
{[%clk 0:01:59]} 22... Bxg2 {[%clk 0:00:34.9]} 23. Bxb4 {[%clk 0:01:50.2]} 23...
Bd5 {[%clk 0:00:29.7]} 24. b3 {[%clk 0:01:39.4]} 24... Rfe8 {[%clk 0:00:28.8]}
25. Rc7 {[%clk 0:01:35.7]} 25... f6 {[%clk 0:00:27.5]} 26. Nh3 {[%clk
0:01:31.7]} 26... Rac8 {[%clk 0:00:24.2]} 27. Ra7 {[%clk 0:01:25.8]} 27... Re2
{[%clk 0:00:17]} 28. c4 {[%clk 0:01:24.1]} 28... Bxc4 {[%clk 0:00:15.2]} 29. Kd1
{[%clk 0:00:56.9]} 29... Rxa2 {[%clk 0:00:13.1]} 30. bxc4 {[%clk 0:00:53.9]}
30... Rxc4 {[%clk 0:00:14]} 31. Ra8+ {[%clk 0:00:27.4]} 31... Kh7 {[%clk
0:00:13.6]} 32. Rb8 {[%clk 0:00:23.4]} 32... Rxh4 {[%clk 0:00:13.7]} 33. Nf4
{[%clk 0:00:11.5]} 33... Rxf4 {[%clk 0:00:13.3]} 34. Be1 {[%clk 0:00:10.3]}
34... Rd4+ {[%clk 0:00:12]} 35. Kc1 {[%clk 0:00:10.1]} 35... Re2 {[%clk
0:00:12]} 36. Ba5 {[%clk 0:00:08.7]} 36... Rxf2 {[%clk 0:00:10.4]} 37. Rb3
{[%clk 0:00:07.1]} 37... Ra4 {[%clk 0:00:09]} 38. Bc3 {[%clk 0:00:06]} 38... Rg4
{[%clk 0:00:09.1]} 39. Be1 {[%clk 0:00:05.3]} 39... Rg1 {[%clk 0:00:08.6]} 40.
Kd1 {[%clk 0:00:05]} 40... Rff1 {[%clk 0:00:08.5]} 41. Re3 {[%clk 0:00:05.2]}
41... Rxe1+ {[%clk 0:00:07.8]} 42. Rxe1 {[%clk 0:00:05.1]} 42... Rxe1+ {[%clk
0:00:08.7]} 0-1

[Event "Early-Titled-Tuesday-Blitz-June-18-2024"]
[Site "Chess.com"]
[Date "2024.06.18"]
[Round "7"]
[White "Slovineanu"]
[Black "Dolphin_2010"]
[Result "0-1"]
[WhiteElo "2555"]
[BlackElo "2750"]
[TimeControl "180+1"]
[EndTime "9:20:26 PDT"]
[Termination "Dolphin_2010 won on time"]

1. d4 {[%clk 0:03:00.9]} 1... d5 {[%clk 0:02:51.9]} 2. Nf3 {[%clk 0:03:00.4]}
2... Nf6 {[%clk 0:02:47.4]} 3. c4 {[%clk 0:02:59.8]} 3... c6 {[%clk 0:02:45.8]}
4. e3 {[%clk 0:02:56.3]} 4... Bf5 {[%clk 0:02:45]} 5. Nc3 {[%clk 0:02:56.2]}
5... e6 {[%clk 0:02:42.7]} 6. Nh4 {[%clk 0:02:56.5]} 6... Be4 {[%clk 0:02:28.8]}
7. f3 {[%clk 0:02:54.5]} 7... Bg6 {[%clk 0:02:28.2]} 8. Qb3 {[%clk 0:02:55]}
8... Qb6 {[%clk 0:02:27.7]} 9. Nxg6 {[%clk 0:02:51.5]} 9... hxg6 {[%clk
0:02:27]} 10. Bd2 {[%clk 0:02:48]} 10... Nbd7 {[%clk 0:02:26.4]} 11. Bd3 {[%clk
0:02:39.6]} 11... Be7 {[%clk 0:02:18.1]} 12. Qxb6 {[%clk 0:02:31.9]} 12... axb6
{[%clk 0:02:19]} 13. a3 {[%clk 0:02:28.2]} 13... dxc4 {[%clk 0:02:10.3]} 14.
Bxc4 {[%clk 0:02:27.6]} 14... b5 {[%clk 0:02:11.2]} 15. Ba2 {[%clk 0:02:19.3]}
15... Nb6 {[%clk 0:02:07.4]} 16. Ke2 {[%clk 0:02:13.4]} 16... Nfd5 {[%clk
0:02:03.1]} 17. h3 {[%clk 0:01:56.1]} 17... Nxc3+ {[%clk 0:01:59.1]} 18. Bxc3
{[%clk 0:01:56.3]} 18... Nd5 {[%clk 0:01:58]} 19. Bxd5 {[%clk 0:01:49.2]} 19...
exd5 {[%clk 0:01:56.9]} 20. Bb4 {[%clk 0:01:48]} 20... Ra4 {[%clk 0:01:51.7]}
21. b3 {[%clk 0:01:35.2]} 21... Ra6 {[%clk 0:01:45.8]} 22. Kd3 {[%clk
0:01:24.4]} 22... Kd7 {[%clk 0:01:42.7]} 23. Bxe7 {[%clk 0:01:23.6]} 23... Kxe7
{[%clk 0:01:42.8]} 24. Kc2 {[%clk 0:01:23.7]} 24... Rha8 {[%clk 0:01:42.9]} 25.
Kb2 {[%clk 0:01:24.2]} 25... Kd6 {[%clk 0:01:43.4]} 26. h4 {[%clk 0:01:20.3]}
26... Re8 {[%clk 0:01:43.1]} 27. Rhe1 {[%clk 0:01:18.7]} 27... Raa8 {[%clk
0:01:35.2]} 28. a4 {[%clk 0:01:14]} 28... bxa4 {[%clk 0:01:30.8]} 29. Rxa4
{[%clk 0:01:13.5]} 29... Rad8 {[%clk 0:01:18.9]} 30. Kc3 {[%clk 0:01:10.1]}
30... Re7 {[%clk 0:01:17.1]} 31. Kd3 {[%clk 0:01:04.8]} 31... Rh8 {[%clk
0:01:11.1]} 32. g3 {[%clk 0:01:00.5]} 32... f6 {[%clk 0:01:05.5]} 33. e4 {[%clk
0:00:52.7]} 33... Rh5 {[%clk 0:01:04.5]} 34. Re3 {[%clk 0:00:46.5]} 34... g5
{[%clk 0:00:37.1]} 35. hxg5 {[%clk 0:00:45.5]} 35... Rxg5 {[%clk 0:00:38]} 36.
g4 {[%clk 0:00:43.1]} 36... dxe4+ {[%clk 0:00:37.7]} 37. Rxe4 {[%clk 0:00:43.3]}
37... Rd7 {[%clk 0:00:26.9]} 38. Ra8 {[%clk 0:00:35.9]} 38... Kc7 {[%clk
0:00:21.9]} 39. Rae8 {[%clk 0:00:34.4]} 39... Rb5 {[%clk 0:00:11.6]} 40. Kc4
{[%clk 0:00:31]} 40... Rbd5 {[%clk 0:00:08.1]} 41. Kc3 {[%clk 0:00:18.2]} 41...
f5 {[%clk 0:00:08.1]} 0-1

[Event "Early-Titled-Tuesday-Blitz-June-18-2024"]
[Site "Chess.com"]
[Date "2024.06.18"]
[Round "7"]
[White "elamier"]
[Black "gpsji27"]
[Result "0-1"]
[WhiteElo "2449"]
[BlackElo "2336"]
[TimeControl "180+1"]
[EndTime "9:20:27 PDT"]
[Termination "gpsji27 won on time"]

1. d4 {[%clk 0:03:00.9]} 1... d5 {[%clk 0:02:56.8]} 2. c4 {[%clk 0:03:00.8]}
2... e6 {[%clk 0:02:55.9]} 3. Nf3 {[%clk 0:02:59.8]} 3... Nf6 {[%clk 0:02:56.1]}
4. Nc3 {[%clk 0:03:00.2]} 4... Be7 {[%clk 0:02:55.1]} 5. Bf4 {[%clk 0:02:59.8]}
5... O-O {[%clk 0:02:47.9]} 6. e3 {[%clk 0:02:58.7]} 6... b6 {[%clk 0:02:44.5]}
7. Bd3 {[%clk 0:02:50.5]} 7... c5 {[%clk 0:02:40.8]} 8. cxd5 {[%clk 0:02:30.8]}
8... exd5 {[%clk 0:02:38.8]} 9. Ne5 {[%clk 0:02:27]} 9... Bb7 {[%clk 0:02:33.2]}
10. Qf3 {[%clk 0:02:23.2]} 10... Nbd7 {[%clk 0:02:30.7]} 11. O-O {[%clk
0:02:21.4]} 11... Rc8 {[%clk 0:02:27.7]} 12. Qh3 {[%clk 0:02:20.1]} 12... Nxe5
{[%clk 0:02:01]} 13. dxe5 {[%clk 0:02:14.1]} 13... Ne4 {[%clk 0:01:52.7]} 14.
Bxe4 {[%clk 0:01:59.6]} 14... dxe4 {[%clk 0:01:50.2]} 15. Rfd1 {[%clk
0:02:00.5]} 15... Qe8 {[%clk 0:01:47]} 16. Rd7 {[%clk 0:01:48]} 16... Bc6 {[%clk
0:01:33.9]} 17. Rxa7 {[%clk 0:01:39.8]} 17... Rd8 {[%clk 0:01:27.8]} 18. Qg3
{[%clk 0:01:08.5]} 18... Kh8 {[%clk 0:01:13.1]} 19. Bg5 {[%clk 0:00:57.3]} 19...
Bxg5 {[%clk 0:01:10.7]} 20. Qxg5 {[%clk 0:00:58.2]} 20... Rd2 {[%clk 0:01:09]}
21. b3 {[%clk 0:00:49.8]} 21... h6 {[%clk 0:01:04.9]} 22. Qf4 {[%clk 0:00:45.5]}
22... Qb8 {[%clk 0:00:40.2]} 23. Re7 {[%clk 0:00:30.9]} 23... f6 {[%clk
0:00:18.8]} 24. Qg4 {[%clk 0:00:09.6]} 24... Rg8 {[%clk 0:00:13.4]} 25. exf6
{[%clk 0:00:05.4]} 25... gxf6 {[%clk 0:00:13.8]} 26. Qf5 {[%clk 0:00:04]} 26...
Rg7 {[%clk 0:00:06]} 27. Qxf6 {[%clk 0:00:04.1]} 27... Qg8 {[%clk 0:00:02.3]}
28. Qxh6+ {[%clk 0:00:04.2]} 28... Qh7 {[%clk 0:00:01]} 29. Qxg7+ {[%clk
0:00:01.6]} 29... Qxg7 {[%clk 0:00:01.9]} 30. Rxg7 {[%clk 0:00:02.4]} 30... Kxg7
{[%clk 0:00:02.8]} 31. h3 {[%clk 0:00:03.1]} 31... Rc2 {[%clk 0:00:03.2]} 32.
Na4 {[%clk 0:00:03.6]} 32... b5 {[%clk 0:00:03.1]} 33. Nb6 {[%clk 0:00:02.9]}
33... c4 {[%clk 0:00:03.6]} 34. bxc4 {[%clk 0:00:02.7]} 34... bxc4 {[%clk
0:00:04.5]} 35. a3 {[%clk 0:00:02.8]} 35... c3 {[%clk 0:00:04.9]} 36. Nc4 {[%clk
0:00:02.8]} 36... Bd5 {[%clk 0:00:03.8]} 0-1

[Event "Early-Titled-Tuesday-Blitz-June-18-2024"]
[Site "Chess.com"]
[Date "2024.06.18"]
[Round "7"]
[White "rollercoaster29"]
[Black "SicilianPanzer"]
[Result "1/2-1/2"]
[WhiteElo "2510"]
[BlackElo "2356"]
[TimeControl "180+1"]
[EndTime "9:20:30 PDT"]
[Termination "Game drawn by repetition"]

1. e4 {[%clk 0:03:00.9]} 1... e5 {[%clk 0:02:59]} 2. Nf3 {[%clk 0:02:53.6]} 2...
Nc6 {[%clk 0:02:58.4]} 3. d4 {[%clk 0:02:44.6]} 3... exd4 {[%clk 0:02:57]} 4.
Nxd4 {[%clk 0:02:45.4]} 4... Qf6 {[%clk 0:02:55.9]} 5. Nf3 {[%clk 0:02:37.1]}
5... Bb4+ {[%clk 0:02:54.6]} 6. c3 {[%clk 0:02:36.6]} 6... Bc5 {[%clk
0:02:54.5]} 7. Be2 {[%clk 0:02:16.3]} 7... Nge7 {[%clk 0:02:52.7]} 8. O-O {[%clk
0:02:12]} 8... h6 {[%clk 0:02:51.9]} 9. Nbd2 {[%clk 0:02:04]} 9... d6 {[%clk
0:02:43.6]} 10. Nc4 {[%clk 0:02:00.2]} 10... a5 {[%clk 0:02:39.1]} 11. Ne3
{[%clk 0:01:53.9]} 11... O-O {[%clk 0:02:30]} 12. Nd5 {[%clk 0:01:39]} 12...
Nxd5 {[%clk 0:02:28.4]} 13. exd5 {[%clk 0:01:39.9]} 13... Ne7 {[%clk 0:02:20.6]}
14. c4 {[%clk 0:01:26.4]} 14... Ng6 {[%clk 0:02:05.3]} 15. Qd2 {[%clk
0:01:16.8]} 15... Bf5 {[%clk 0:01:49.1]} 16. Bd3 {[%clk 0:01:02.2]} 16... Rfe8
{[%clk 0:01:15.4]} 17. Bxf5 {[%clk 0:00:58.6]} 17... Qxf5 {[%clk 0:01:14.5]} 18.
Nd4 {[%clk 0:00:56.5]} 18... Qg4 {[%clk 0:00:51.1]} 19. Nf3 {[%clk 0:00:21.2]}
19... Qxc4 {[%clk 0:00:39.8]} 20. b3 {[%clk 0:00:19.1]} 20... Qg4 {[%clk
0:00:37]} 21. h3 {[%clk 0:00:17.8]} 21... Qe4 {[%clk 0:00:28.5]} 22. Re1 {[%clk
0:00:16.4]} 22... Qf5 {[%clk 0:00:26.7]} 23. Bb2 {[%clk 0:00:16.2]} 23... f6
{[%clk 0:00:22.2]} 24. Rxe8+ {[%clk 0:00:11.8]} 24... Rxe8 {[%clk 0:00:22.2]}
25. Re1 {[%clk 0:00:12.7]} 25... Rxe1+ {[%clk 0:00:19.4]} 26. Qxe1 {[%clk
0:00:12.2]} 26... Ne5 {[%clk 0:00:17.7]} 27. Nxe5 {[%clk 0:00:07.6]} 27... fxe5
{[%clk 0:00:17.2]} 28. Qe2 {[%clk 0:00:06.5]} 28... Qb1+ {[%clk 0:00:16.3]} 29.
Kh2 {[%clk 0:00:06.4]} 29... Qxa2 {[%clk 0:00:15.8]} 30. Qc2 {[%clk 0:00:04.6]}
30... Bd4 {[%clk 0:00:09.7]} 31. Qf5 {[%clk 0:00:03.9]} 31... Qxb2 {[%clk
0:00:04.1]} 32. Qc8+ {[%clk 0:00:03.7]} 32... Kf7 {[%clk 0:00:02.6]} 33. Qe6+
{[%clk 0:00:03.7]} 33... Kf8 {[%clk 0:00:02.5]} 34. Qc8+ {[%clk 0:00:03.4]}
34... Ke7 {[%clk 0:00:01.9]} 35. Qe6+ {[%clk 0:00:02.6]} 35... Kd8 {[%clk
0:00:02.5]} 36. Qg8+ {[%clk 0:00:02]} 36... Kd7 {[%clk 0:00:02.4]} 37. Qe6+
{[%clk 0:00:02.1]} 37... Kd8 {[%clk 0:00:02.6]} 38. Qg8+ {[%clk 0:00:02.8]}
38... Ke7 {[%clk 0:00:02.6]} 39. Qe6+ {[%clk 0:00:03.7]} 39... Kf8 {[%clk
0:00:02.9]} 40. Qc8+ {[%clk 0:00:04]} 40... Kf7 {[%clk 0:00:02.8]} 41. Qe6+
{[%clk 0:00:04.2]} 41... Kf8 {[%clk 0:00:03.2]} 1/2-1/2

[Event "Early-Titled-Tuesday-Blitz-June-18-2024"]
[Site "Chess.com"]
[Date "2024.06.18"]
[Round "7"]
[White "GelmanAlexander"]
[Black "Yaacovn"]
[Result "1-0"]
[WhiteElo "2664"]
[BlackElo "2825"]
[TimeControl "180+1"]
[EndTime "9:20:32 PDT"]
[Termination "GelmanAlexander won on time"]

1. c4 {[%clk 0:03:00.9]} 1... c5 {[%clk 0:02:50.7]} 2. Nf3 {[%clk 0:03:00.9]}
2... b6 {[%clk 0:02:40.6]} 3. d3 {[%clk 0:03:01.1]} 3... Bb7 {[%clk 0:02:35]} 4.
e3 {[%clk 0:03:01.5]} 4... g6 {[%clk 0:02:33.8]} 5. a3 {[%clk 0:03:01.2]} 5...
Bg7 {[%clk 0:02:33.4]} 6. Be2 {[%clk 0:03:01.9]} 6... Nf6 {[%clk 0:02:32.8]} 7.
O-O {[%clk 0:03:02.4]} 7... O-O {[%clk 0:02:32.3]} 8. Nbd2 {[%clk 0:03:02.8]}
8... Nc6 {[%clk 0:02:32]} 9. Qc2 {[%clk 0:03:03.1]} 9... d5 {[%clk 0:02:30.4]}
10. cxd5 {[%clk 0:03:03.2]} 10... Nxd5 {[%clk 0:02:27.7]} 11. Ne4 {[%clk
0:03:03.4]} 11... Rc8 {[%clk 0:02:26.4]} 12. Bd2 {[%clk 0:03:04]} 12... e5
{[%clk 0:02:25.2]} 13. Rac1 {[%clk 0:03:04.4]} 13... Qd7 {[%clk 0:02:24.3]} 14.
Qb1 {[%clk 0:03:04.9]} 14... Rfd8 {[%clk 0:02:23.1]} 15. Rfd1 {[%clk 0:03:05]}
15... h6 {[%clk 0:02:22.5]} 16. h3 {[%clk 0:03:04.5]} 16... f5 {[%clk
0:02:21.2]} 17. Ng3 {[%clk 0:03:04.6]} 17... Kh7 {[%clk 0:02:18]} 18. b4 {[%clk
0:03:04.4]} 18... cxb4 {[%clk 0:02:16.1]} 19. axb4 {[%clk 0:03:05.3]} 19... Qe7
{[%clk 0:02:14.6]} 20. b5 {[%clk 0:03:05.2]} 20... Na5 {[%clk 0:01:56.7]} 21. h4
{[%clk 0:03:05.8]} 21... e4 {[%clk 0:01:26.9]} 22. dxe4 {[%clk 0:03:00.6]} 22...
fxe4 {[%clk 0:01:24.5]} 23. Rxc8 {[%clk 0:02:50]} 23... exf3 {[%clk 0:01:08.8]}
24. Rxd8 {[%clk 0:02:25.1]} 24... fxe2 {[%clk 0:01:08.3]} 25. Nxe2 {[%clk
0:02:24.8]} 25... Qxd8 {[%clk 0:01:05.3]} 26. Bxa5 {[%clk 0:02:22.8]} 26... bxa5
{[%clk 0:01:04.7]} 27. e4 {[%clk 0:02:22.2]} 27... Qe7 {[%clk 0:00:54.8]} 28.
exd5 {[%clk 0:02:09.9]} 28... Qxe2 {[%clk 0:00:53.1]} 29. h5 {[%clk 0:02:10.6]}
29... Qxh5 {[%clk 0:00:52.5]} 30. Qd3 {[%clk 0:01:47.5]} 30... Be5 {[%clk
0:00:46.9]} 31. g3 {[%clk 0:01:26.3]} 31... Bd6 {[%clk 0:00:34.7]} 32. Rd2
{[%clk 0:01:22.1]} 32... Qf5 {[%clk 0:00:30.2]} 33. Qe3 {[%clk 0:01:19.8]} 33...
Qg5 {[%clk 0:00:16.3]} 34. Qd4 {[%clk 0:00:56.1]} 34... Qe7 {[%clk 0:00:15.3]}
35. Rd3 {[%clk 0:00:52.7]} 35... Bc5 {[%clk 0:00:14.1]} 36. Qf4 {[%clk
0:00:50.1]} 36... Kg7 {[%clk 0:00:12.9]} 37. Kh2 {[%clk 0:00:41.8]} 37... Qd6
{[%clk 0:00:09.9]} 38. Qe4 {[%clk 0:00:39.4]} 38... h5 {[%clk 0:00:10]} 39. f4
{[%clk 0:00:29.6]} 39... Bb6 {[%clk 0:00:10]} 40. f5 {[%clk 0:00:29.6]} 40...
Qf6 {[%clk 0:00:09.9]} 41. Rf3 {[%clk 0:00:25.6]} 41... g5 {[%clk 0:00:09.7]}
42. Rd3 {[%clk 0:00:24.2]} 42... g4 {[%clk 0:00:09.5]} 43. Qf4 {[%clk 0:00:23]}
43... Qb2+ {[%clk 0:00:07.6]} 44. Rd2 {[%clk 0:00:23.4]} 44... Qf6 {[%clk
0:00:06.8]} 45. d6 {[%clk 0:00:23.6]} 45... Qa1 {[%clk 0:00:05.6]} 46. Qg5+
{[%clk 0:00:21.4]} 46... Kf8 {[%clk 0:00:04.7]} 47. Qh6+ {[%clk 0:00:19.6]}
47... Kf7 {[%clk 0:00:03]} 48. Qh7+ {[%clk 0:00:18.5]} 48... Kf8 {[%clk
0:00:03.2]} 49. Qh8+ {[%clk 0:00:13.1]} 1-0

[Event "Early-Titled-Tuesday-Blitz-June-18-2024"]
[Site "Chess.com"]
[Date "2024.06.18"]
[Round "7"]
[White "Sprinc1"]
[Black "milovichalex"]
[Result "1-0"]
[WhiteElo "2253"]
[BlackElo "2391"]
[TimeControl "180+1"]
[EndTime "9:20:32 PDT"]
[Termination "Sprinc1 won by resignation"]

1. d4 {[%clk 0:03:00.9]} 1... d5 {[%clk 0:03:00]} 2. Nf3 {[%clk 0:02:57.9]} 2...
Nf6 {[%clk 0:02:59.7]} 3. g3 {[%clk 0:02:57.7]} 3... c6 {[%clk 0:02:58.9]} 4.
Bg2 {[%clk 0:02:55.6]} 4... Bg4 {[%clk 0:02:59.4]} 5. O-O {[%clk 0:02:56.1]}
5... Nbd7 {[%clk 0:02:59.9]} 6. c4 {[%clk 0:02:56]} 6... e6 {[%clk 0:02:59.9]}
7. Nc3 {[%clk 0:02:54.3]} 7... Be7 {[%clk 0:03:00.1]} 8. Qb3 {[%clk 0:02:54.4]}
8... b6 {[%clk 0:02:53.5]} 9. cxd5 {[%clk 0:02:47.7]} 9... cxd5 {[%clk
0:02:52.4]} 10. Bf4 {[%clk 0:02:45.9]} 10... a6 {[%clk 0:02:49.6]} 11. Rfc1
{[%clk 0:02:40.3]} 11... O-O {[%clk 0:02:48]} 12. Na4 {[%clk 0:02:08.3]} 12...
h6 {[%clk 0:02:41.5]} 13. Bc7 {[%clk 0:02:06.3]} 13... Qe8 {[%clk 0:02:37.1]}
14. Nxb6 {[%clk 0:02:03.5]} 14... Nxb6 {[%clk 0:02:33.8]} 15. Qxb6 {[%clk
0:02:03.6]} 15... Qb5 {[%clk 0:02:29.3]} 16. Qxb5 {[%clk 0:01:52.7]} 16... axb5
{[%clk 0:02:27.1]} 17. h3 {[%clk 0:01:39.1]} 17... Bxf3 {[%clk 0:02:25.9]} 18.
Bxf3 {[%clk 0:01:38.9]} 18... Rfc8 {[%clk 0:02:24.4]} 19. Bf4 {[%clk 0:01:36.4]}
19... Rc4 {[%clk 0:02:21.4]} 20. Rxc4 {[%clk 0:01:27.4]} 20... bxc4 {[%clk
0:02:21]} 21. Kf1 {[%clk 0:01:05]} 21... g5 {[%clk 0:02:13.1]} 22. Bd2 {[%clk
0:00:59.4]} 22... Nd7 {[%clk 0:02:05.9]} 23. e4 {[%clk 0:00:55.2]} 23... Nb6
{[%clk 0:01:55.6]} 24. Ke2 {[%clk 0:00:51.3]} 24... f5 {[%clk 0:01:48.6]} 25.
exf5 {[%clk 0:00:47.2]} 25... exf5 {[%clk 0:01:48.3]} 26. g4 {[%clk 0:00:43.9]}
26... f4 {[%clk 0:01:45.9]} 27. Kd1 {[%clk 0:00:38.4]} 27... Kf7 {[%clk
0:01:45.1]} 28. Kc2 {[%clk 0:00:37.1]} 28... Bf6 {[%clk 0:01:42]} 29. Bc3 {[%clk
0:00:35.8]} 29... Ke6 {[%clk 0:01:28.8]} 30. b3 {[%clk 0:00:35.2]} 30... Kd6
{[%clk 0:01:23.6]} 31. bxc4 {[%clk 0:00:30.2]} 31... Nxc4 {[%clk 0:01:23.2]} 32.
a4 {[%clk 0:00:29.6]} 32... Ra6 {[%clk 0:01:10.1]} 33. Bb4+ {[%clk 0:00:27.8]}
33... Kc6 {[%clk 0:01:08.2]} 34. Bc5 {[%clk 0:00:27.2]} 34... Ra5 {[%clk
0:01:03.7]} 35. Ra2 {[%clk 0:00:24]} 35... Nb6 {[%clk 0:01:01.1]} 36. Bf8 {[%clk
0:00:21.1]} 36... Rxa4 {[%clk 0:00:50.4]} 37. Rxa4 {[%clk 0:00:20.5]} 37... Nxa4
{[%clk 0:00:50.9]} 38. Bxh6 {[%clk 0:00:17.2]} 38... Nb6 {[%clk 0:00:49.2]} 39.
Kd3 {[%clk 0:00:16.9]} 39... Nd7 {[%clk 0:00:48.5]} 40. h4 {[%clk 0:00:16.5]}
40... gxh4 {[%clk 0:00:46.6]} 41. Bxf4 {[%clk 0:00:17.4]} 41... h3 {[%clk
0:00:45.6]} 42. g5 {[%clk 0:00:16.9]} 42... Bg7 {[%clk 0:00:42.7]} 43. Bg4
{[%clk 0:00:17.1]} 43... Nf8 {[%clk 0:00:38.1]} 44. Bxh3 {[%clk 0:00:17]} 44...
Ng6 {[%clk 0:00:38.3]} 45. Bg3 {[%clk 0:00:17.4]} 45... Ne7 {[%clk 0:00:34.7]}
46. f4 {[%clk 0:00:17.4]} 46... Bf8 {[%clk 0:00:25]} 47. f5 {[%clk 0:00:16.7]}
47... Ng8 {[%clk 0:00:18.8]} 48. f6 {[%clk 0:00:15.8]} 48... Bh6 {[%clk
0:00:15.4]} 49. f7 {[%clk 0:00:14.2]} 1-0